bitfinex-derivatives/quotes_BNBF0:USTF0_20251225
["timestamp","ask_amount","ask_price","bid_price","bid_amount"]
[1766681725449,0.67765775,841.12,840.0,1.7729465]
[1766681725648,0.67765775,841.11,840.0,1.7729465]
[1766681725850,0.67765775,841.1,840.0,1.7729465]
[1766681726049,0.67765775,841.09,840.0,1.7729465]
[1766681726252,0.67765775,841.08,840.0,1.7729465]
[1766681726452,0.67765775,841.07,840.0,1.7729465]
[1766681726652,0.2069433,841.25,840.0,1.7729465]
[1766681726857,0.67755624,841.24,840.0,1.7729465]
[1766681727056,0.67755624,841.23,840.0,1.7729465]
[1766681727256,0.67755624,841.22,840.0,1.7729465]
[1766681727553,0.67755624,841.21,840.0,1.7729465]
[1766681727753,0.67755624,841.2,840.0,1.7729465]
[1766681727952,0.67755624,841.19,840.0,1.7729465]
[1766681728156,0.67755624,841.18,840.0,1.7729465]
[1766681728356,0.67755624,841.17,840.0,1.7729465]
[1766681728556,0.67755624,841.16,840.0,1.7729465]
[1766681728756,0.67755624,841.15,840.0,1.7729465]
[1766681728956,0.67755624,841.14,840.0,1.7729465]
[1766681729257,13.37752835,841.13,840.0,1.7729465]
[1766681729451,0.67755624,841.12,840.0,1.7729465]
[1766681732252,0.67755624,841.12,840.01,1.7729465]
[1766681732857,0.67755624,841.11,840.01,1.7729465]
[1766681733056,0.67755624,841.1,840.01,1.7729465]
[1766681733255,0.67755624,841.09,840.01,1.7729465]
[1766681733455,0.67755624,841.08,840.01,1.7729465]
[1766681733656,0.67755624,841.07,840.01,1.7729465]
[1766681733859,0.67755624,841.06,840.01,1.7729465]
[1766681734156,0.2069433,841.25,840.01,1.7729465]
[1766681734356,0.67778932,841.24,840.01,1.7729465]
[1766681734558,0.67778932,841.23,840.01,1.7729465]
[1766681734758,0.67778932,841.22,840.01,1.7729465]
[1766681734956,0.67778932,841.21,840.01,1.7729465]
[1766681735160,0.67778932,841.2,840.01,1.7729465]
[1766681735360,0.67778932,841.19,840.02,1.7729465]
[1766681735557,0.67778932,841.18,840.02,1.7729465]
[1766681735759,0.67778932,841.17,840.02,1.7729465]
[1766681736059,0.67778932,841.16,840.02,1.7729465]
[1766681736257,0.67778932,841.15,840.02,1.7729465]
[1766681736460,0.67778932,841.14,840.02,1.7729465]
[1766681736658,0.67778932,841.13,840.02,1.7729465]
[1766681736962,0.67778932,841.12,840.02,1.7729465]
[1766681737164,0.67778932,841.11,840.02,1.7729465]
[1766681737363,0.67778932,841.1,840.03,1.7729465]
[1766681737662,0.67778932,841.09,840.03,10.68347965]
[1766681738364,0.67778932,841.09,840.04,1.7729465]
[1766681739560,0.67778932,841.09,840.05,1.7729465]
[1766681741057,0.67778932,841.08,840.05,1.7729465]
[1766681741261,0.67778932,841.07,840.05,1.7729465]
[1766681741457,0.67778932,841.06,840.06,1.7729465]
[1766681741659,0.67778932,841.05,840.06,1.7729465]
[1766681741860,0.67778932,841.04,840.06,10.53239987]
[1766681742060,0.67778932,841.03,840.06,10.53239987]
[1766681742264,0.67778932,841.02,840.06,8.75945337]
[1766681742461,0.67778932,841.01,840.06,8.75945337]
[1766681742660,0.67778932,841.0,840.06,8.75945337]
[1766681742859,13.122215,841.06,840.06,8.75945337]
[1766681743164,0.6787605,841.05,840.06,8.75945337]
[1766681743366,0.6787605,841.04,840.06,10.53239987]
[1766681743564,0.6787605,841.03,840.06,10.53239987]
[1766681743765,0.6787605,841.02,840.06,10.53239987]
[1766681743959,0.6787605,841.01,840.06,10.53239987]
[1766681744159,0.6787605,841.0,840.06,10.53239987]
[1766681744364,0.6787605,840.99,840.08,1.7729465]
[1766681744560,0.6787605,840.98,840.08,1.7729465]
[1766681744864,13.122215,841.06,840.08,1.7729465]
[1766681745060,0.67925339,841.05,840.08,1.7729465]
[1766681745364,0.67925339,841.04,840.08,1.7729465]
[1766681745564,0.67925339,841.03,840.08,1.7729465]
[1766681745865,0.67925339,841.02,840.08,1.7729465]
[1766681746064,0.67925339,841.01,840.08,1.7729465]
[1766681746265,0.67925339,841.0,840.09,1.7729465]
[1766681746465,0.67925339,840.99,840.09,1.7729465]
[1766681746762,0.67925339,840.98,840.09,1.7729465]
[1766681747060,0.67925339,840.97,840.09,1.7729465]
[1766681747261,0.67925339,840.96,840.09,1.7729465]
[1766681747464,0.67925339,840.95,840.12,1.7729465]
[1766681747662,0.67925339,840.94,840.12,1.7729465]
[1766681747866,0.89055937,841.21,840.12,1.7729465]
[1766681748065,0.67985411,841.2,840.12,1.7729465]
[1766681748267,0.67985411,841.19,840.12,1.7729465]
[1766681748465,0.67985411,841.19,840.13,1.7729465]
[1766681748466,0.67985411,841.18,840.13,1.7729465]
[1766681748765,0.67985411,841.17,840.13,1.7729465]
[1766681748971,0.67985411,841.16,840.13,1.7729465]
[1766681749165,0.67985411,841.15,840.13,1.7729465]
[1766681749366,13.64486928,841.14,840.15,1.7729465]
[1766681749665,0.67985411,841.13,840.15,1.7729465]
[1766681749866,0.67985411,841.12,840.15,1.7729465]
[1766681750066,0.67985411,841.11,840.15,1.7729465]
[1766681750268,0.67985411,841.1,840.15,1.7729465]
[1766681750466,0.67985411,841.09,840.16,1.7729465]
[1766681750670,0.67985411,841.08,840.16,1.7729465]
[1766681750869,0.67985411,841.07,840.16,1.7729465]
[1766681751170,0.67985411,841.06,840.16,1.7729465]
[1766681751470,0.67985411,841.05,840.16,1.7729465]
[1766681751770,0.67985411,841.04,840.16,1.7729465]
[1766681751970,0.67985411,841.03,840.16,1.7729465]
[1766681752170,0.67985411,841.02,840.16,1.7729465]
[1766681752371,0.67985411,841.01,840.16,1.7729465]
[1766681752567,0.67985411,841.0,840.16,1.7729465]
[1766681752772,0.67985411,840.99,840.16,1.7729465]
[1766681753074,0.67985411,840.98,840.16,1.7729465]
[1766681753371,0.89055937,841.16,840.16,1.7729465]
[1766681753372,0.67985411,840.97,840.16,1.7729465]
[1766681753672,0.67985411,840.96,840.16,1.7729465]
[1766681753972,0.67985411,840.95,840.16,1.7729465]
[1766681754268,0.67985411,840.94,840.16,1.7729465]
[1766681754480,0.67985411,840.93,840.16,1.7729465]
[1766681754670,0.67985411,840.92,840.16,1.7729465]
[1766681754868,0.67985411,840.91,840.16,1.7729465]
[1766681755172,0.67985411,840.9,840.16,1.7729465]
[1766681755373,0.67985411,840.89,840.16,1.7729465]
[1766681755672,0.89055937,841.16,840.16,1.7729465]
[1766681755968,13.85996559,841.15,840.16,1.7729465]
[1766681756172,0.68067198,841.14,840.16,1.7729465]
[1766681756370,0.68067198,841.13,840.16,1.7729465]
[1766681756568,0.68067198,841.12,840.16,1.7729465]
[1766681756772,0.68067198,841.11,840.16,1.7729465]
[1766681756970,0.68067198,841.1,840.16,1.7729465]
[1766681757173,0.68067198,841.09,840.16,1.7729465]
[1766681757469,0.68067198,841.08,840.16,1.7729465]
[1766681757670,0.68067198,841.07,840.16,1.7729465]
[1766681757869,0.68067198,841.06,840.16,1.7729465]
[1766681758076,0.68067198,841.05,840.16,1.7729465]
[1766681758273,0.68067198,841.04,840.16,1.7729465]
[1766681758572,0.68067198,841.03,840.16,1.7729465]
[1766681758771,0.68067198,841.02,840.16,1.7729465]
[1766681758970,0.68067198,841.01,840.16,1.7729465]
[1766681759174,0.68067198,841.0,840.16,1.7729465]
[1766681759373,0.68067198,840.99,840.16,1.7729465]
[1766681759570,0.68067198,840.98,840.16,1.7729465]
[1766681759770,0.68067198,840.97,840.16,1.7729465]
[1766681759969,0.68067198,840.96,840.16,1.7729465]
[1766681760175,0.68067198,840.95,840.16,1.7729465]
[1766681760470,0.68067198,840.94,840.16,1.7729465]
[1766681760770,0.68067198,840.93,840.16,1.7729465]
[1766681760971,0.68067198,840.92,840.16,1.7729465]
[1766681761169,0.68067198,840.91,840.16,1.7729465]
[1766681761373,0.68067198,840.9,840.16,1.7729465]
[1766681761571,0.68067198,840.89,840.16,1.7729465]
[1766681761771,0.89055937,841.16,840.16,1.7729465]
[1766681761976,0.68061728,841.15,840.16,1.7729465]
[1766681762177,0.68061728,841.14,840.16,1.7729465]
[1766681762374,0.68061728,841.13,840.16,1.7729465]
[1766681762574,0.68061728,841.12,840.16,1.7729465]
[1766681762873,0.68061728,841.11,840.16,1.7729465]
[1766681763073,0.68061728,841.1,840.16,1.7729465]
[1766681763270,0.68061728,841.09,840.16,1.7729465]
[1766681763469,0.89055937,841.16,840.16,1.7729465]
[1766681763470,0.68061728,841.08,840.16,1.7729465]
[1766681763676,0.68061728,841.07,840.16,1.7729465]
[1766681763874,0.68061728,841.06,840.16,1.7729465]
[1766681764068,0.68061728,841.05,840.16,1.7729465]
[1766681764272,0.68061728,841.04,840.16,1.7729465]
[1766681764480,0.68061728,841.03,840.16,1.7729465]
[1766681764676,0.68061728,841.02,840.16,1.7729465]
[1766681764876,0.68061728,841.01,840.16,1.7729465]
[1766681765076,0.68061728,841.0,840.16,1.7729465]
[1766681765376,0.68061728,840.99,840.16,1.7729465]
[1766681765576,0.68061728,840.98,840.16,1.7729465]
[1766681765776,0.68061728,840.97,840.16,1.7729465]
[1766681765975,13.11395866,841.04,840.16,1.7729465]
[1766681765976,0.68061728,840.96,840.16,1.7729465]
[1766681766275,0.68061728,840.95,840.16,1.7729465]
[1766681766472,0.68061728,840.94,840.16,1.7729465]
[1766681766675,0.68061728,840.93,840.16,1.7729465]
[1766681766873,0.68061728,840.92,840.16,1.7729465]
[1766681767073,0.68061728,840.91,840.16,1.7729465]
[1766681767277,0.68061728,840.9,840.16,1.7729465]
[1766681767476,0.68061728,840.89,840.16,1.7729465]
[1766681767676,13.11395866,841.04,840.16,1.7729465]
[1766681767871,0.68061374,841.03,840.16,1.7729465]
[1766681768076,0.68061374,841.02,840.16,1.7729465]
[1766681768274,0.68061374,841.01,840.16,1.7729465]
[1766681768574,0.68061374,841.0,840.16,1.7729465]
[1766681768775,0.68061374,840.99,840.16,1.7729465]
[1766681768974,0.68061374,840.98,840.16,1.7729465]
[1766681769174,0.68061374,840.97,840.16,1.7729465]
[1766681769478,0.68061374,840.96,840.16,1.7729465]
[1766681769677,0.68061374,840.95,840.16,1.7729465]
[1766681769875,0.68061374,840.94,840.16,1.7729465]
[1766681770177,0.68061374,840.93,840.16,1.7729465]
[1766681770375,0.68061374,840.92,840.16,1.7729465]
[1766681770573,0.68061374,840.91,840.16,1.7729465]
[1766681770776,0.68061374,840.9,840.16,1.7729465]
[1766681771072,0.68061374,840.89,840.16,1.7729465]
[1766681771272,0.89055937,841.16,840.16,1.7729465]
[1766681771472,13.74400211,841.15,840.16,1.7729465]
[1766681771775,0.68061508,841.14,840.16,1.7729465]
[1766681771972,0.68061508,841.13,840.16,1.7729465]
[1766681772173,0.68061508,841.12,840.16,1.7729465]
[1766681772372,0.68061508,841.11,840.16,1.7729465]
[1766681772576,0.68061508,841.1,840.16,1.7729465]
[1766681772773,0.68061508,841.09,840.16,1.7729465]
[1766681772976,0.68061508,841.08,840.16,1.7729465]
[1766681773176,0.68061508,841.07,840.16,1.7729465]
[1766681773371,13.06338703,841.15,840.16,1.7729465]
[1766681773372,0.68061508,841.06,840.16,1.7729465]
[1766681773577,0.68061508,841.05,840.16,1.7729465]
[1766681773777,0.68061508,841.04,840.16,1.7729465]
[1766681774077,13.06338703,841.15,840.16,1.7729465]
[1766681774078,0.68061508,841.03,840.16,1.7729465]
[1766681774375,0.68061508,841.02,840.16,1.7729465]
[1766681774577,0.68061508,841.01,840.16,1.7729465]
[1766681774879,0.68061508,841.0,840.16,1.7729465]
[1766681775075,0.68061508,840.99,840.16,1.7729465]
[1766681775373,0.68061508,840.98,840.18,1.7729465]
[1766681775574,0.68061508,840.97,840.18,1.7729465]
[1766681775774,0.68061508,840.96,840.18,1.7729465]
[1766681775974,0.68061508,840.95,840.18,1.7729465]
[1766681776177,0.68061508,840.94,840.18,1.7729465]
[1766681776372,0.68061508,840.93,840.18,1.7729465]
[1766681776672,0.68061508,840.92,840.18,1.7729465]
[1766681776874,0.68061508,840.91,840.18,1.7729465]
[1766681777977,13.06541388,840.92,840.19,1.7729465]
[1766681780179,13.06541388,840.92,840.18,1.7729465]
[1766681780775,0.89055937,841.19,840.18,1.7729465]
[1766681780979,13.38569219,841.18,840.18,1.7729465]
[1766681781175,0.68023503,841.17,840.18,1.7729465]
[1766681781376,0.68023503,841.16,840.18,1.7729465]
[1766681781575,0.68023503,841.15,840.18,1.7729465]
[1766681781780,0.68023503,841.14,840.18,1.7729465]
[1766681781975,0.68023503,841.13,840.18,1.7729465]
[1766681782178,0.68023503,841.12,840.18,1.7729465]
[1766681782381,0.68023503,841.11,840.18,1.7729465]
[1766681782576,0.68023503,841.1,840.18,1.7729465]
[1766681782776,0.68023503,841.09,840.18,1.7729465]
[1766681782980,0.68023503,841.08,840.18,1.7729465]
[1766681783180,0.68023503,841.07,840.18,1.7729465]
[1766681783377,0.68023503,841.06,840.18,1.7729465]
[1766681783577,0.68023503,841.05,840.18,1.7729465]
[1766681783780,0.68023503,841.04,840.18,1.7729465]
[1766681783977,0.68023503,841.03,840.18,1.7729465]
[1766681784281,0.68023503,841.02,840.18,1.7729465]
[1766681784481,0.68023503,841.01,840.18,1.7729465]
[1766681784682,55.08089118,841.41,839.84,55.27277055]
[1766681784683,0.89055937,841.29,840.28,1.7729465]
[1766681784879,0.68021604,841.28,840.32,1.7729465]
[1766681785179,0.68021604,841.27,840.3,1.7729465]
[1766681785377,0.68021604,841.26,840.3,1.7729465]
[1766681785580,0.68021604,841.25,840.3,1.7729465]
[1766681785781,0.68021604,841.24,840.3,1.7729465]
[1766681785979,0.68021604,841.23,840.3,1.7729465]
[1766681786283,0.68021604,841.22,840.29,1.7729465]
[1766681786477,0.68021604,841.21,840.29,1.7729465]
[1766681786682,0.68021604,841.2,840.29,1.7729465]
[1766681786883,0.68021604,841.19,840.29,1.7729465]
[1766681787083,0.68021604,841.18,840.28,1.7729465]
[1766681787384,0.68021604,841.17,840.28,1.7729465]
[1766681787685,0.68021604,841.16,840.28,1.7729465]
[1766681787878,0.68021604,841.15,840.28,1.7729465]
[1766681788082,0.68021604,841.14,840.28,1.7729465]
[1766681788284,0.68021604,841.13,840.28,1.7729465]
[1766681788480,0.68021604,841.12,840.27,1.7729465]
[1766681788781,0.68021604,841.11,840.27,1.7729465]
[1766681789085,0.89055937,841.38,840.27,1.7729465]
[1766681789285,0.67920292,841.37,840.27,1.7729465]
[1766681789482,0.67920292,841.36,840.27,1.7729465]
[1766681789683,0.67920292,841.35,840.27,1.7729465]
[1766681789885,0.67920292,841.34,840.27,1.7729465]
[1766681790085,0.67920292,841.33,840.27,1.7729465]
[1766681790286,0.67920292,841.32,840.26,1.7729465]
[1766681790588,0.67920292,841.31,840.26,1.7729465]
[1766681790787,0.67920292,841.3,840.26,1.7729465]
[1766681790989,0.67920292,841.29,840.26,1.7729465]
[1766681791283,0.67920292,841.28,840.26,1.7729465]
[1766681791483,0.67920292,841.27,840.26,1.7729465]
[1766681791683,0.67920292,841.26,840.26,1.7729465]
[1766681791885,0.67920292,841.25,840.26,1.7729465]
[1766681792085,0.67920292,841.24,840.26,1.7729465]
[1766681792286,0.67920292,841.23,840.26,1.7729465]
[1766681792487,0.67920292,841.22,840.26,1.7729465]
[1766681792786,0.67920292,841.21,840.26,1.7729465]
[1766681792986,0.67920292,841.2,840.26,1.7729465]
[1766681793187,0.67920292,841.19,840.25,1.7729465]
[1766681793385,0.67920292,841.18,840.25,1.7729465]
[1766681793586,0.67920292,841.17,840.25,1.7729465]
[1766681793785,0.67920292,841.16,840.25,1.7729465]
[1766681793988,0.67920292,841.15,840.25,1.7729465]
[1766681794289,0.67920292,841.14,840.25,1.7729465]
[1766681794494,0.67920292,841.13,840.24,1.7729465]
[1766681794690,0.67920292,841.12,840.24,1.7729465]
[1766681794892,0.89055937,841.39,840.24,1.7729465]
[1766681795089,0.67881806,841.38,840.24,1.7729465]
[1766681795294,0.67881806,841.37,840.24,1.7729465]
[1766681795489,0.67881806,841.36,840.24,1.7729465]
[1766681795790,0.67881806,841.35,840.24,1.7729465]
[1766681795991,0.67881806,841.34,840.24,1.7729465]
[1766681796293,0.67881806,841.33,840.23,1.7729465]
[1766681796493,0.67881806,841.32,840.23,1.7729465]
[1766681796693,0.67881806,841.31,840.23,1.7729465]
[1766681796994,0.67881806,841.3,840.23,1.7729465]
[1766681797189,0.67881806,841.29,840.23,1.7729465]
[1766681797393,0.67881806,841.28,840.23,1.7729465]
[1766681797588,0.67881806,841.27,840.23,1.7729465]
[1766681797789,0.67881806,841.26,840.24,1.7729465]
[1766681798090,0.67881806,841.25,840.24,1.7729465]
[1766681798294,0.67881806,841.24,840.24,1.7729465]
[1766681798589,0.67881806,841.23,840.24,1.7729465]
[1766681798788,0.67881806,841.22,840.24,1.7729465]
[1766681798995,0.67881806,841.21,840.24,1.7729465]
[1766681799296,0.67881806,841.2,840.24,1.7729465]
[1766681799492,0.67881806,841.19,840.24,1.7729465]
[1766681799795,0.67881806,841.18,840.24,1.7729465]
[1766681799996,0.67864083,841.17,840.24,1.7729465]
[1766681800198,0.67864083,841.16,840.24,1.7729465]
[1766681800397,0.67864083,841.15,840.24,1.7729465]
[1766681800597,0.67864083,841.14,840.24,1.7729465]
[1766681800798,12.76250497,841.17,840.24,1.7729465]
[1766681800995,0.67861792,841.16,840.24,1.7729465]
[1766681801301,0.67861792,841.15,840.23,1.7729465]
[1766681801496,0.67861792,841.14,840.23,1.7729465]
[1766681801797,12.76250497,841.17,840.23,1.7729465]
[1766681801996,0.67859961,841.16,840.23,1.7729465]
[1766681802196,0.67859961,841.15,840.23,1.7729465]
[1766681802497,0.67859961,841.14,840.23,1.7729465]
[1766681802699,12.76250497,841.17,840.23,1.7729465]
[1766681802900,0.67858585,841.16,840.23,1.7729465]
[1766681803096,0.67858585,841.15,840.23,1.7729465]
[1766681803399,0.67858585,841.14,840.23,1.7729465]
[1766681803600,1.09688649,841.41,840.23,1.7729465]
[1766681803795,0.67857629,841.4,840.23,1.7729465]
[1766681803999,0.67857629,841.39,840.23,1.7729465]
[1766681804199,0.67857629,841.38,840.23,1.7729465]
[1766681804400,0.67857629,841.37,840.23,1.7729465]
[1766681804600,0.67857629,841.36,840.23,1.7729465]
[1766681804896,0.67857629,841.35,840.23,1.7729465]
[1766681805098,0.67857629,841.34,840.23,1.7729465]
[1766681805298,0.67857629,841.33,840.23,1.7729465]
[1766681805499,0.67857629,841.32,840.23,1.7729465]
[1766681805698,0.67857629,841.31,840.23,1.7729465]
[1766681805897,0.67857629,841.3,840.23,1.7729465]
[1766681806102,0.67857629,841.29,840.23,1.7729465]
[1766681806403,0.67857629,841.28,840.23,1.7729465]
[1766681806603,0.67857629,841.27,840.23,1.7729465]
[1766681806798,0.67857629,841.26,840.23,1.7729465]
[1766681806998,0.67857629,841.25,840.23,1.7729465]
[1766681807203,0.67857629,841.24,840.23,1.7729465]
[1766681807400,0.67857629,841.23,840.23,1.7729465]
[1766681807598,0.67857629,841.22,840.24,1.7729465]
[1766681807801,0.67857629,841.21,840.24,1.7729465]
[1766681808098,0.67857629,841.2,840.24,1.7729465]
[1766681808299,0.67857629,841.19,840.24,1.7729465]
[1766681808502,0.67857629,841.18,840.24,1.7729465]
[1766681808703,0.67857629,841.17,840.24,1.7729465]
[1766681808902,0.67857629,841.16,840.24,1.7729465]
[1766681809105,0.67857629,841.15,840.24,1.7729465]
[1766681809304,0.67857629,841.14,840.24,1.7729465]
[1766681809504,1.09688649,841.41,840.24,1.7729465]
[1766681809703,0.67749636,841.4,840.24,1.7729465]
[1766681810004,0.67749636,841.39,840.24,1.7729465]
[1766681810205,0.67749636,841.38,840.24,1.7729465]
[1766681810404,0.67749636,841.37,840.24,1.7729465]
[1766681810606,0.67749636,841.36,840.24,1.7729465]
[1766681810806,0.67749636,841.35,840.24,1.7729465]
[1766681811103,0.67749636,841.34,840.24,1.7729465]
[1766681811305,0.67749636,841.33,840.24,1.7729465]
[1766681811508,0.67749636,841.32,840.24,1.7729465]
[1766681811709,0.67749636,841.31,840.24,1.7729465]
[1766681812009,0.67749636,841.3,840.24,1.7729465]
[1766681812205,0.67749636,841.29,840.27,1.7729465]
[1766681812405,0.67749636,841.28,840.27,1.7729465]
[1766681812605,0.67749636,841.27,840.27,10.64481078]
[1766681812806,0.67749636,841.26,840.27,10.64481078]
[1766681813006,0.67749636,841.25,840.27,10.64481078]
[1766681813206,0.67749636,841.24,840.27,10.64481078]
[1766681813410,0.67749636,841.23,840.27,10.64481078]
[1766681813610,0.67749636,841.22,840.27,10.64481078]
[1766681813807,0.20691993,841.41,840.27,10.64481078]
[1766681813808,0.67749636,841.21,840.27,10.64481078]
[1766681814009,0.67749636,841.2,840.27,10.64481078]
[1766681814211,0.67749636,841.19,840.27,10.64481078]
[1766681814411,0.67749636,841.18,840.27,10.64481078]
[1766681814707,0.67749636,841.17,840.27,10.64481078]
[1766681815012,0.20691993,841.41,840.27,10.64481078]
[1766681815212,0.67759662,841.4,840.28,1.7729465]
[1766681815513,0.67759662,841.39,840.28,1.7729465]
[1766681815808,0.67759662,841.38,840.28,1.7729465]
[1766681816012,0.67759662,841.37,840.28,1.7729465]
[1766681816206,0.67759662,841.36,840.28,1.7729465]
[1766681816409,0.67759662,841.35,840.28,1.7729465]
[1766681816608,0.67759662,841.34,840.28,1.7729465]
[1766681816812,0.67759662,841.33,840.28,1.7729465]
[1766681817113,0.67759662,841.32,840.28,1.7729465]
[1766681817312,0.67759662,841.31,840.28,1.7729465]
[1766681817508,0.67759662,841.3,840.28,1.7729465]
[1766681817712,0.67759662,841.29,840.28,1.7729465]
[1766681817914,0.67759662,841.28,840.28,1.7729465]
[1766681818110,0.67759662,841.27,840.28,1.7729465]
[1766681818309,0.67759662,841.26,840.28,1.7729465]
[1766681818509,0.67759662,841.25,840.28,1.7729465]
[1766681818709,0.67759662,841.24,840.31,1.7729465]
[1766681818909,0.67759662,841.23,840.31,1.7729465]
[1766681819110,0.67759662,841.22,840.31,1.7729465]
[1766681819312,0.67759662,841.21,840.32,1.7729465]
[1766681819511,0.67759662,841.2,840.32,1.7729465]
[1766681819812,0.67759662,841.19,840.32,1.7729465]
[1766681820014,0.20691993,841.41,840.32,1.7729465]
[1766681820212,0.67780177,841.4,840.32,1.7729465]
[1766681820412,0.67780177,841.39,840.32,1.7729465]
[1766681820612,0.67780177,841.38,840.32,1.7729465]
[1766681820912,0.67780177,841.37,840.32,1.7729465]
[1766681821112,0.67780177,841.36,840.32,1.7729465]
[1766681821317,0.67780177,841.35,840.32,1.7729465]
[1766681821518,0.67780177,841.34,840.32,1.7729465]
[1766681821714,0.67780177,841.33,840.32,1.7729465]
[1766681821912,0.67780177,841.32,840.32,1.7729465]
[1766681822216,13.13212776,841.4,840.04,55.44330552]
[1766681822217,0.67780177,841.31,840.33,1.7729465]
[1766681822416,0.67780177,841.3,840.33,1.7729465]
[1766681822622,0.67780177,841.29,840.33,1.7729465]
[1766681822818,0.67780177,841.28,840.33,1.7729465]
[1766681823114,0.67780177,841.27,840.33,1.7729465]
[1766681823314,0.67780177,841.26,840.33,1.7729465]
[1766681823517,0.67780177,841.25,840.33,1.7729465]
[1766681823720,0.67780177,841.24,840.33,1.7729465]
[1766681824015,0.67780177,841.23,840.34,1.7729465]
[1766681824219,0.67780177,841.22,840.34,1.7729465]
[1766681824513,0.67780177,841.21,840.34,1.7729465]
[1766681824718,0.67780177,841.2,840.34,1.7729465]
[1766681824917,0.67780177,841.19,840.34,1.7729465]
[1766681825118,0.67807792,841.18,840.34,1.7729465]
[1766681825414,0.20691993,841.41,840.34,1.7729465]
[1766681825619,0.67806272,841.4,840.34,1.7729465]
[1766681825918,0.67806272,841.39,840.34,1.7729465]
[1766681826119,0.67806272,841.38,840.35,1.7729465]
[1766681826415,0.67806272,841.37,840.35,1.7729465]
[1766681826714,0.67806272,841.36,840.35,1.7729465]
[1766681826917,0.67806272,841.35,840.35,1.7729465]
[1766681827120,0.67806272,841.34,840.35,1.7729465]
[1766681827419,0.20691993,841.41,840.35,1.7729465]
[1766681827420,0.67806272,841.33,840.35,1.7729465]
[1766681827616,0.67806272,841.32,840.35,1.7729465]
[1766681827816,0.67806272,841.31,840.35,1.7729465]
[1766681828020,0.67806272,841.3,840.35,1.7729465]
[1766681828222,0.67806272,841.29,840.36,1.7729465]
[1766681828521,0.67806272,841.28,840.36,1.7729465]
[1766681828720,0.67806272,841.27,840.36,1.7729465]
[1766681828919,0.67806272,841.26,840.36,1.7729465]
[1766681829119,0.67806272,841.25,840.36,1.7729465]
[1766681829319,0.67806272,841.24,840.37,1.7729465]
[1766681829522,0.67806272,841.23,840.37,1.7729465]
[1766681829723,0.20691993,841.41,840.37,1.7729465]
[1766681829724,0.67806272,841.22,840.37,1.7729465]
[1766681829919,0.67806272,841.21,840.37,1.7729465]
[1766681830118,0.67806272,841.2,840.37,1.7729465]
[1766681830318,0.67806272,841.19,840.37,1.7729465]
[1766681830523,0.67806272,841.18,840.37,1.7729465]
[1766681830724,0.67806272,841.17,840.37,1.7729465]
[1766681830920,0.67806272,841.16,840.37,1.7729465]
[1766681831123,0.20691993,841.41,840.37,1.7729465]
[1766681831322,0.67854874,841.4,840.37,1.7729465]
[1766681831521,0.67854874,841.39,840.37,1.7729465]
[1766681831724,0.67854874,841.38,840.37,1.7729465]
[1766681831926,0.67854874,841.37,840.37,1.7729465]
[1766681832124,0.67854874,841.36,840.37,1.7729465]
[1766681832324,0.67854874,841.35,840.37,1.7729465]
[1766681832528,0.67854874,841.34,840.37,1.7729465]
[1766681832824,0.67854874,841.33,840.37,1.7729465]
[1766681833028,0.67854874,841.32,840.37,1.7729465]
[1766681833325,0.67854874,841.31,840.36,1.7729465]
[1766681833526,0.67854874,841.3,840.36,1.7729465]
[1766681833725,0.67854874,841.29,840.36,1.7729465]
[1766681834026,0.67854874,841.28,840.36,1.7729465]
[1766681834226,0.67854874,841.27,840.36,1.7729465]
[1766681834429,0.67854874,841.26,840.36,1.7729465]
[1766681834626,0.67854874,841.25,840.36,1.7729465]
[1766681834828,0.67854874,841.24,840.36,1.7729465]
[1766681835024,0.67854874,841.23,840.36,1.7729465]
[1766681835224,0.67854874,841.22,840.36,1.7729465]
[1766681835430,0.67848125,841.21,840.36,1.7729465]
[1766681835630,0.67848125,841.2,840.36,1.7729465]
[1766681835832,0.67848125,841.19,840.36,1.7729465]
[1766681836031,0.67848125,841.18,840.36,1.7729465]
[1766681836228,0.67848125,841.17,840.36,1.7729465]
[1766681836433,0.67848125,841.16,840.36,1.7729465]
[1766681836633,0.20691993,841.41,840.36,1.7729465]
[1766681836833,0.67847309,841.4,840.36,1.7729465]
[1766681837133,0.67847309,841.39,840.36,1.7729465]
[1766681837334,0.67847309,841.38,840.36,1.7729465]
[1766681837636,0.20691993,841.41,840.52,1.18790376]
[1766681840733,1.0981292,841.41,840.49,1.18790376]
[1766681844236,0.89120927,841.4,840.49,1.18790376]
[1766681847337,0.89120927,841.4,840.5,1.18790376]
[1766681853147,0.89120927,841.39,840.5,1.18790376]
[1766681854345,0.89120927,841.39,840.51,1.18790376]
[1766681855544,0.89120927,841.39,840.51,10.12304414]
[1766681858144,0.89120927,841.38,840.51,10.12304414]
[1766681859545,0.89120927,841.38,840.51,1.18790376]
[1766681863156,0.89120927,841.38,840.52,1.18790376]
[1766681864254,0.89120927,841.38,840.51,1.18790376]
[1766681864758,0.89120927,841.38,840.52,1.18790376]
[1766681867561,0.68091154,841.37,840.36,1.7729465]
[1766681867758,0.68091154,841.36,840.36,1.7729465]
[1766681868057,0.68091154,841.35,840.36,1.7729465]
[1766681868263,0.68091154,841.34,840.36,1.7729465]
[1766681868559,0.68091154,841.33,840.36,1.7729465]
[1766681868759,0.68091154,841.32,840.36,1.7729465]
[1766681869059,0.68091154,841.31,840.36,1.7729465]
[1766681869264,0.68091154,841.3,840.36,1.7729465]